fUSD/lending_fUSD_20241202
["ID","MTS","AMOUNT","RATE_DAILY","PERIOD"]
[343981386,1733169388393,-500.0,0.00025,120]
[343981387,1733169388491,-500.0,0.00025,120]
[343981388,1733169388591,-500.0,0.00025,120]
[343981389,1733169388688,-6317.99,0.00025,120]
[343981390,1733169388779,-1730.55,0.00025,120]
[343981391,1733169388873,-4472.97,0.00025,120]
[343981392,1733169388968,-637.9,0.00025,120]
[343981393,1733169389061,-5537.71,0.00025,120]
[343981394,1733169389154,-500.0,0.00025,120]
[343981395,1733169389242,-500.0,0.00025,120]
[343981396,1733169389334,-2516.67,0.00025,120]
[343981397,1733169389427,-895.29,0.00025,120]
[343981398,1733169389515,-500.0,0.00025,120]
[343981399,1733169389608,-500.0,0.00025,120]
[343981400,1733169389695,-500.0,0.00025,120]
[343981401,1733169389784,-500.0,0.00025,120]
[343981402,1733169389872,-715.32,0.00025,120]
[343981403,1733169389962,-757.06,0.00025,120]
[343981404,1733169390055,-500.0,0.00025,120]
[343981405,1733169390148,-3249.49,0.00025,120]
[343981406,1733169390243,-500.0,0.00025,120]
[343981407,1733169390336,-641.3,0.00025,120]
[343981408,1733169390432,-500.0,0.00025,120]
[343981409,1733169390528,-500.0,0.00025,120]
[343981410,1733169390624,-6268.63,0.00025,120]
[343981411,1733169390717,-500.0,0.00025,120]
[343981412,1733169390814,-1448.03,0.00025,120]
[343981413,1733169390909,-500.0,0.00025,120]
[343981414,1733169391009,-500.0,0.00025,120]
[343981415,1733169391102,-3834.82,0.00025,120]
[343981416,1733169391195,-500.0,0.00025,120]
[343981417,1733169391287,-3881.75,0.00025,120]
[343981418,1733169391667,-1200.26,0.00025,120]
[343981419,1733169391764,-500.0,0.00025,120]
[343981420,1733169391863,-4386.48,0.00025,120]
[343981421,1733169391959,-500.0,0.00025,120]
[343981422,1733169392052,-500.0,0.00025,120]
[343981423,1733169392145,-500.0,0.00025,120]
[343981424,1733169392237,-4939.59,0.00025,120]
[343981425,1733169392331,-500.0,0.00025,120]
[343981426,1733169392426,-1160.53,0.00025,120]
[343981427,1733169392523,-1362.16,0.00025,120]
[343981428,1733169392622,-500.0,0.00025,120]
[343981429,1733169392714,-500.0,0.00025,120]
[343981430,1733169392811,-618.4,0.00025,120]
[343981431,1733169392904,-897.62,0.00025,120]
[343981432,1733169392997,-500.0,0.00025,120]
[343981433,1733169393091,-500.0,0.00025,120]
[343981434,1733169393198,-908.58,0.00025,120]
[343981435,1733169393298,-748.23,0.00025,120]
[343981436,1733169393398,-501.13906888,0.00025,120]
[343981437,1733169393499,-2326.42,0.00025,120]
[343981438,1733169393599,-631.96,0.00025,120]
[343981439,1733169393700,-12264.12,0.00025,120]
[343981440,1733169393797,-500.0,0.00025,120]
[343981441,1733169393896,-3360.25,0.00025,120]
[343981442,1733169393996,-500.0,0.00025,120]
[343981443,1733169394097,-793.36,0.00025,120]
[343981444,1733169394196,-1512.73,0.00025,120]
[343981445,1733169394290,-500.0,0.00025,120]
[343981446,1733169394393,-1149.66,0.00025,120]
[343981447,1733169394506,-500.0,0.00025,120]
[343981448,1733169394610,-3180.24,0.00025,120]
[343981449,1733169394708,-982.45,0.00025,120]
[343981450,1733169394803,-3437.65,0.00025,120]
[343981451,1733169394894,-2186.91,0.00025,120]
[343981452,1733169394991,-500.0,0.00025,120]
[343981453,1733169395083,-641.83,0.00025,120]
[343981454,1733169395179,-1267.07,0.00025,120]
[343981455,1733169395270,-2544.61,0.00025,120]
[343981456,1733169395363,-3120.06,0.00025,120]
[343981457,1733169395461,-500.0,0.00025,120]
[343981458,1733169395551,-500.0,0.00025,120]
[343981459,1733169395646,-2280.76,0.00025,120]
[343981460,1733169395738,-586.91,0.00025,120]
[343981461,1733169395830,-500.0,0.00025,120]
[343981462,1733169395920,-500.0,0.00025,120]
[343981463,1733169396012,-1187.33,0.00025,120]
[343981464,1733169396103,-500.0,0.00025,120]
[343981465,1733169396191,-500.0,0.00025,120]
[343981466,1733169396282,-500.0,0.00025,120]
[343981467,1733169396372,-500.0,0.00025,120]
[343981468,1733169396460,-3187.8,0.00025,120]
[343981469,1733169396551,-500.0,0.00025,120]
[343981470,1733169396642,-835.54,0.00025,120]
[343981471,1733169396731,-646.09,0.00025,120]
[343981472,1733169396823,-500.0,0.00025,120]
[343981473,1733169396913,-700.0,0.00025,120]
[343981474,1733169397000,-510.57453379,0.00025,120]
[343981475,1733169397089,-500.0,0.00025,120]
[343981476,1733169397181,-500.0,0.00025,120]
[343981477,1733169397270,-1643.01,0.00025,120]
[343981478,1733169397358,-500.0,0.00025,120]
[343981479,1733169397451,-500.0,0.00025,120]
[343981480,1733169397548,-948.79,0.00025,120]
[343981481,1733169397641,-500.0,0.00025,120]
[343981482,1733169397731,-500.0,0.00025,120]
[343981483,1733169397824,-500.0,0.00025,120]
[343981484,1733169397915,-3559.29,0.00025,120]
[343981485,1733169398005,-3325.5,0.00025,120]
[343981486,1733169398099,-581.49,0.00025,120]
[343981487,1733169398190,-2351.39,0.00025,120]
[343981488,1733169398278,-503.19,0.00025,120]
[343981489,1733169398367,-621.14,0.00025,120]
[343981490,1733169398460,-1663.95,0.00025,120]
[343981491,1733169398550,-4289.07,0.00025,120]
[343981492,1733169398640,-500.0,0.00025,120]
[343981493,1733169398732,-1118.58,0.00025,120]
[343981494,1733169398821,-745.04,0.00025,120]
[343981495,1733169398907,-500.0,0.00025,120]
[343981496,1733169398992,-500.0,0.00025,120]
[343981497,1733169399080,-1284.07,0.00025,120]
[343981498,1733169399167,-4507.19,0.00025,120]
[343981499,1733169399252,-890.64,0.00025,120]
[343981500,1733169399347,-917.02,0.00025,120]
[343981501,1733169399437,-2525.37,0.00025,120]
[343981502,1733169399537,-500.0,0.00025,120]
[343981503,1733169399633,-181.07998114,0.00025,120]
[343981504,1733169399723,-580.95,0.00025,120]
[343981505,1733169399813,-510.40658052,0.00025,120]
[343981506,1733169399903,-2534.0,0.00025,120]
[343981507,1733169399992,-6207.23,0.00025,120]
[343981508,1733169400080,-500.0,0.00025,120]
[343981509,1733169400167,-500.0,0.00025,120]
[343981510,1733169400256,-1470.42,0.00025,120]
[343981511,1733169400347,-1114.51,0.00025,60]
[343981512,1733169400439,-2448.92,0.00025,120]
[343981513,1733169400809,-500.0,0.00025,120]
[343981514,1733169400911,-500.0,0.00025,120]
[343981515,1733169401005,-513.46,0.00025,120]
[343981516,1733169401096,-500.0,0.00025,120]
[343981517,1733169401184,-1950.33,0.00025,120]
[343981518,1733169401270,-500.0,0.00025,120]
[343981519,1733169401358,-3054.87,0.00025,120]
[343981520,1733169401445,-870.88,0.00025,120]
[343981521,1733169401533,-500.0,0.00025,120]
[343981522,1733169401620,-500.0,0.00025,120]
[343981523,1733169401707,-500.0,0.00025,120]
[343981524,1733169401793,-2228.68,0.00025,120]
[343981525,1733169401878,-500.0,0.00025,120]
[343981526,1733169401966,-3075.15,0.00025,120]
[343981527,1733169402055,-500.0,0.00025,120]
[343981528,1733169402144,-544.54,0.00025,120]
[343981529,1733169402232,-500.0,0.00025,120]
[343981530,1733169402318,-923.08,0.00025,120]
[343981531,1733169402404,-500.0,0.00025,120]
[343981532,1733169402492,-500.0,0.00025,120]
[343981533,1733169402589,-500.0,0.00025,120]
[343981534,1733169402679,-500.0,0.00025,120]
[343981535,1733169402765,-2991.85,0.00025,120]
[343981536,1733169402857,-500.0,0.00025,120]
[343981537,1733169402942,-500.0,0.00025,120]
[343981538,1733169403034,-2623.21,0.00025,120]
[343981539,1733169403121,-3418.87,0.00025,120]
[343981540,1733169403211,-1092.9,0.00025,120]
[343981541,1733169403301,-571.61,0.00025,120]
[343981542,1733169403393,-500.0,0.00025,120]
[343981543,1733169403484,-811.66,0.00025,120]
[343981544,1733169403577,-500.0,0.00025,120]
[343981545,1733169403670,-7964.99,0.00025,120]
[343981546,1733169403758,-2196.28,0.00025,120]
[343981547,1733169403849,-500.0,0.00025,120]
[343981548,1733169403940,-5734.44,0.00025,120]
[343981549,1733169404026,-2473.71,0.00025,120]
[343981550,1733169404114,-500.0,0.00025,120]
[343981551,1733169404202,-808.93,0.00025,120]
[343981552,1733169404294,-500.0,0.00025,120]
[343981553,1733169404387,-1131.45,0.00025,120]
[343981554,1733169404480,-500.0,0.00025,120]
[343981555,1733169404580,-3287.72,0.00025,120]
[343981556,1733169404671,-684.17,0.00025,120]
[343981557,1733169404761,-5388.18,0.00025,120]
[343981558,1733169404846,-500.0,0.00025,120]
[343981559,1733169404933,-3026.65,0.00025,120]
[343981560,1733169405017,-610.73,0.00025,120]
[343981561,1733169405103,-500.0,0.00025,120]
[343981562,1733169405186,-500.0,0.00025,120]
[343981563,1733169405271,-663.27,0.00025,120]
[343981564,1733169405356,-500.0,0.00025,120]
[343981565,1733169405445,-2668.13,0.00025,120]
[343981566,1733169405537,-500.0,0.00025,120]
[343981567,1733169405626,-535.28,0.00025,120]
[343981568,1733169405717,-1670.84,0.00025,120]
[343981569,1733169405805,-500.0,0.00025,120]
[343981570,1733169405899,-895.09,0.00025,120]
[343981571,1733169405988,-500.0,0.00025,120]
[343981572,1733169406079,-1975.86,0.00025,120]
[343981573,1733169406170,-2661.94,0.00025,120]
[343981574,1733169406259,-500.0,0.00025,120]
[343981575,1733169406349,-500.0,0.00025,120]
[343981576,1733169406436,-3529.09,0.00025,120]
[343981577,1733169406525,-10716.27,0.00025,120]
[343981578,1733169406616,-5200.25,0.00025,120]
[343981579,1733169406706,-985.88,0.00025,120]
[343981580,1733169406796,-3213.63,0.00025,120]
[343981581,1733169406888,-20643.4,0.00025,120]
[343981582,1733169406977,-1404.4,0.00025,120]
[343981583,1733169407065,-516.68655156,0.00025,120]
[343981584,1733169407155,-978.51,0.00025,120]
[343981585,1733169407241,-548.74997816,0.00025,120]
[343981586,1733169407334,-2688.97,0.00025,120]
[343981587,1733169407424,-4908.38,0.00025,120]
[343981588,1733169407520,-3927.33,0.00025,120]
[343981589,1733169407629,-4766.8,0.00025,120]
[343981590,1733169407729,-5216.64,0.00025,120]
[343981591,1733169407824,-500.0,0.00025,120]
[343981592,1733169407918,-1607.08,0.00025,120]
[343981593,1733169408015,-3025.07,0.00025,120]
[343981594,1733169408116,-500.0,0.00025,120]
[343981595,1733169408216,-500.0,0.00025,120]
[343981596,1733169408315,-500.0,0.00025,120]
[343981597,1733169408413,-500.0,0.00025,120]
[343981598,1733169408515,-500.0,0.00025,120]
[343981599,1733169408614,-241.46175041,0.00025,120]
[343981600,1733169408707,-2839.58,0.00025,120]
[343981601,1733169408800,-841.46,0.00025,120]
[343981602,1733169408892,-2729.59,0.00025,120]
[343981603,1733169408985,-2073.17,0.00025,120]
[343981604,1733169409073,-500.0,0.00025,120]
[343981605,1733169409163,-2877.76,0.00025,120]
[343981606,1733169409258,-3498.94,0.00025,120]
[343981607,1733169409635,-6177.84,0.00025,120]
[343981608,1733169409732,-5465.18,0.00025,120]
[343981609,1733169409824,-1140.61,0.00025,120]
[343981610,1733169409916,-4766.13,0.00025,120]
[343981611,1733169410009,-682.14,0.00025,120]
[343981612,1733169410100,-500.0,0.00025,120]
[343981613,1733169410194,-729.35,0.00025,120]
[343981614,1733169410287,-7107.57,0.00025,120]
[343981615,1733169410380,-522.94,0.00025,120]
[343981616,1733169410473,-500.0,0.00025,120]
[343981617,1733169410567,-823.11,0.00025,120]
[343981618,1733169410659,-31749.53,0.00025,120]
[343981619,1733169410750,-3729.24,0.00025,120]
[343981620,1733169410842,-500.0,0.00025,120]
[343981621,1733169410934,-1786.36,0.00025,120]
[343981622,1733169411025,-500.0,0.00025,120]
[343981623,1733169411117,-1433.32,0.00025,120]
[343981624,1733169411211,-5593.29,0.00025,120]
[343981625,1733169411302,-2298.11,0.00025,120]
[343981626,1733169411390,-500.0,0.00025,120]
[343981627,1733169411474,-500.0,0.00025,120]
[343981628,1733169411564,-1432.32,0.00025,120]
[343981629,1733169411650,-558.40373004,0.00025,120]
[343981630,1733169411738,-1134.59,0.00025,120]
[343981631,1733169411824,-718.76,0.00025,120]
[343981632,1733169411913,-2915.48,0.00025,120]
[343981633,1733169411996,-1883.27,0.00025,120]
[343981634,1733169412082,-500.0,0.00025,120]
[343981635,1733169412166,-2649.7,0.00025,120]
[343981636,1733169412255,-500.0,0.00025,120]
[343981637,1733169412338,-3487.24,0.00025,120]
[343981638,1733169412423,-20797.64,0.00025,120]
[343981639,1733169412509,-2924.44,0.00025,120]
[343981640,1733169412596,-500.0,0.00025,120]
[343981641,1733169412684,-2057.6,0.00025,120]
[343981642,1733169412779,-5509.29,0.00025,120]
[343981643,1733169412865,-4788.27,0.00025,120]
[343981644,1733169412951,-500.0,0.00025,120]
[343981645,1733169413033,-500.0,0.00025,120]
[343981646,1733169413120,-6930.13,0.00025,120]
[343981647,1733169413203,-7028.86,0.00025,120]
[343981648,1733169413289,-500.0,0.00025,120]
[343981649,1733169413378,-500.0,0.00025,120]
[343981650,1733169413468,-1803.13,0.00025,120]
[343981651,1733169413558,-3102.05,0.00025,120]
[343981652,1733169413649,-5759.46,0.00025,120]
[343981653,1733169413735,-500.0,0.00025,120]
[343981654,1733169413821,-500.0,0.00025,120]
[343981655,1733169413907,-715.31,0.00025,120]
[343981656,1733169413996,-1541.69,0.00025,120]
[343981657,1733169414088,-500.0,0.00025,120]
[343981658,1733169414175,-500.0,0.00025,120]
[343981659,1733169414265,-500.0,0.00025,120]
[343981660,1733169414356,-500.0,0.00025,120]
[343981661,1733169414445,-7787.8,0.00025,120]
[343981662,1733169414539,-500.0,0.00025,120]
[343981663,1733169414629,-903.21,0.00025,120]
[343981664,1733169414720,-5512.62,0.00025,120]
[343981665,1733169414808,-731.68,0.00025,120]
[343981666,1733169414899,-500.0,0.00025,120]
[343981667,1733169414988,-500.0,0.00025,120]
[343981668,1733169415086,-1079.25,0.00025,120]
[343981669,1733169415177,-500.0,0.00025,120]
[343981670,1733169415264,-1049.47,0.00025,120]
[343981671,1733169415357,-500.0,0.00025,120]
[343981672,1733169415456,-806.28,0.00025,120]
[343981673,1733169415563,-17092.48,0.00025,120]
[343981674,1733169415672,-1062.78,0.00025,120]
[343981675,1733169415774,-500.0,0.00025,120]
[343981676,1733169415876,-500.0,0.00025,120]
[343981677,1733169415986,-3848.05,0.00025,120]
[343981678,1733169416093,-580.18,0.00025,120]
[343981679,1733169416200,-2528.15,0.00025,120]
[343981680,1733169416300,-500.0,0.00025,120]
[343981681,1733169416396,-529.81,0.00025,120]
[343981682,1733169416494,-500.0,0.00025,120]
[343981683,1733169416598,-5322.29,0.00025,120]
[343981684,1733169416693,-1613.46,0.00025,120]
[343981685,1733169416786,-2816.16,0.00025,120]
[343981686,1733169416886,-663.6,0.00025,120]
[343981687,1733169416976,-500.0,0.00025,120]
[343981688,1733169417069,-880.7,0.00025,120]
[343981689,1733169417159,-4195.25,0.00025,120]
[343981690,1733169417251,-6844.27,0.00025,120]
[343981691,1733169417352,-500.0,0.00025,120]
[343981692,1733169417448,-278.33596874,0.00025,120]
[343981693,1733169417550,-1117.94,0.00025,120]
[343981694,1733169417648,-2596.48,0.00025,120]
[343981695,1733169417744,-500.0,0.00025,120]
[343981696,1733169417843,-8824.85,0.00025,120]
[343981697,1733169417937,-4791.52,0.00025,120]
[343981698,1733169418033,-500.0,0.00025,120]
[343981699,1733169418127,-500.0,0.00025,120]
[343981700,1733169418222,-3760.91,0.00025,120]
[343981701,1733169418645,-683.6,0.00025,120]
[343981702,1733169418741,-3052.97,0.00025,120]
[343981703,1733169418837,-1000.0,0.00025,120]
[343981704,1733169418932,-500.0,0.00025,120]
[343981705,1733169419026,-1353.46,0.00025,120]
[343981706,1733169419122,-3811.16,0.00025,120]
[343981707,1733169419222,-584.0,0.00025,120]
[343981708,1733169419316,-1668.31,0.00025,120]
[343981709,1733169419411,-721.18,0.00025,120]
[343981710,1733169419526,-2178.58,0.00025,120]
[343981711,1733169419637,-500.0,0.00025,120]
[343981712,1733169419734,-500.0,0.00025,120]
[343981713,1733169419833,-13422.03,0.00025,120]
[343981714,1733169419929,-26439.53,0.00025,120]
[343981715,1733169420025,-500.0,0.00025,120]
[343981716,1733169420123,-500.0,0.00025,120]
[343981717,1733169420242,-500.0,0.00025,120]
[343981718,1733169420345,-2055.7,0.00025,120]
[343981719,1733169420447,-6506.01,0.00025,120]
[343981720,1733169420554,-17851.52,0.00025,120]
[343981721,1733169420661,-500.0,0.00025,120]
[343981722,1733169420762,-500.0,0.00025,120]
[343981723,1733169420863,-1160.38,0.00025,120]
[343981724,1733169420974,-4324.49,0.00025,120]
[343981725,1733169421075,-500.0,0.00025,120]
[343981726,1733169421171,-500.0,0.00025,120]
[343981727,1733169421263,-3213.25,0.00025,120]
[343981728,1733169421359,-500.0,0.00025,120]
[343981729,1733169421456,-559.05,0.00025,120]
[343981730,1733169421557,-907.5,0.00025,120]
[343981731,1733169421658,-3373.11,0.00025,120]
[343981732,1733169421757,-658.13,0.00025,120]
[343981733,1733169421857,-587.12,0.00025,120]
[343981734,1733169421957,-500.0,0.00025,120]
[343981735,1733169422050,-797.38,0.00025,120]
[343981736,1733169422144,-518.27,0.00025,120]
[343981737,1733169422234,-651.08,0.00025,120]
[343981738,1733169422324,-7147.22,0.00025,120]
[343981739,1733169422415,-2812.6,0.00025,120]
[343981740,1733169422508,-2921.9,0.00025,120]
[343981741,1733169422607,-1551.24,0.00025,120]
[343981742,1733169422705,-500.0,0.00025,120]
[343981743,1733169422804,-500.0,0.00025,120]
[343981744,1733169422905,-622.04,0.00025,120]
[343981745,1733169423008,-1568.244749,0.00025,120]
[343981746,1733169423114,-570.25,0.00025,120]
[343981747,1733169423216,-1134.58,0.00025,120]
[343981748,1733169423322,-8995.35,0.00025,120]
[343981749,1733169423433,-500.0,0.00025,120]
[343981750,1733169423544,-2673.72,0.00025,120]
[343981751,1733169423656,-1345.84,0.00025,120]
[343981752,1733169423762,-500.0,0.00025,120]
[343981753,1733169423866,-723.17,0.00025,120]
[343981754,1733169423970,-500.0,0.00025,120]
[343981755,1733169424075,-1392.8,0.00025,120]
[343981756,1733169424179,-703.37,0.00025,120]
[343981757,1733169424291,-500.0,0.00025,120]
[343981758,1733169424403,-500.0,0.00025,120]
[343981759,1733169424511,-2108.47,0.00025,120]
[343981760,1733169424619,-500.0,0.00025,120]
[343981761,1733169424720,-755.13,0.00025,120]
[343981762,1733169424818,-500.0,0.00025,120]
[343981763,1733169424923,-615.35504727,0.00025,120]
[343981764,1733169425027,-1785.16,0.00025,120]
[343981765,1733169425130,-935.66,0.00025,120]
[343981766,1733169425228,-672.83,0.00025,120]
[343981767,1733169425325,-500.0,0.00025,120]
[343981768,1733169425419,-3035.15,0.00025,120]
[343981769,1733169425521,-632.7,0.00025,120]
[343981770,1733169425622,-500.0,0.00025,120]
[343981771,1733169425718,-488.06891228,0.00025,120]
[343981772,1733169425816,-2072.12,0.00025,120]
[343981773,1733169425915,-5565.53,0.00025,120]
[343981774,1733169426016,-2151.79,0.00025,120]
[343981775,1733169426120,-671.1,0.00025,120]
[343981776,1733169426222,-1217.44,0.00025,60]
[343981777,1733169426323,-4694.36,0.00025,120]
[343981778,1733169426423,-2095.21,0.00025,120]
[343981779,1733169426520,-2095.96,0.00025,120]
[343981780,1733169426622,-500.0,0.00025,120]
[343981781,1733169426720,-2737.11,0.00025,120]
[343981782,1733169426814,-2399.96,0.00025,120]
[343981783,1733169426939,-1205.02,0.00025,120]
[343981784,1733169427031,-517.92,0.00025,120]
[343981785,1733169427127,-731.09,0.00025,120]
[343981786,1733169427223,-198.097515,0.00025,120]
[343981787,1733169427316,-500.0,0.00025,120]
[343981788,1733169427358,-500.0,0.00025,120]
[343981789,1733169427401,-957.59,0.00025,120]
[343981790,1733169427441,-500.0,0.00025,120]
[343981791,1733169427484,-500.0,0.00025,120]
[343981792,1733169427528,-964.02,0.00025,120]
[343981793,1733169427570,-1155.0,0.00025,120]
[343981794,1733169427613,-1599.85,0.00025,120]
[343981795,1733169427974,-5642.52,0.00025,120]
[343981796,1733169428017,-500.0,0.00025,120]
[343981797,1733169428059,-500.0,0.00025,120]
[343981798,1733169428101,-12639.89,0.00025,120]
[343981799,1733169428141,-3145.91,0.00025,120]
[343981800,1733169428181,-4747.76,0.00025,120]
[343981801,1733169428222,-2445.76,0.00025,120]
[343981802,1733169428263,-966.75,0.00025,120]
[343981803,1733169428305,-976.95,0.00025,120]
[343981804,1733169428347,-500.0,0.00025,120]
[343981805,1733169428388,-500.0,0.00025,120]
[343981806,1733169428437,-500.0,0.00025,120]
[343981807,1733169428479,-515.9880556,0.00025,60]
[343981808,1733169428525,-3585.22,0.00025,120]
[343981809,1733169428569,-500.0,0.00025,120]
[343981810,1733169428612,-3095.03,0.00025,120]
[343981811,1733169428654,-2087.33,0.00025,120]
[343981812,1733169428699,-1566.82,0.00025,120]
[343981813,1733169428742,-1858.53,0.00025,120]
[343981814,1733169428786,-528.40378986,0.00025,120]
[343981815,1733169428828,-8533.54,0.00025,120]
[343981816,1733169428870,-500.0,0.00025,120]
[343981817,1733169428913,-2038.8,0.00025,120]
[343981818,1733169428956,-3060.79,0.00025,120]
[343981819,1733169429000,-3532.86,0.00025,120]
[343981820,1733169429047,-21068.21,0.00025,120]
[343981821,1733169429091,-3138.93,0.00025,120]
[343981822,1733169429136,-4394.15,0.00025,120]
[343981823,1733169429180,-500.0,0.00025,120]
[343981824,1733169429232,-1419.7,0.00025,120]
[343981825,1733169429277,-1050.27,0.00025,120]
[343981826,1733169429321,-704.36,0.00025,120]
[343981827,1733169429365,-500.0,0.00025,120]
[343981828,1733169429410,-5863.27,0.00025,120]
[343981829,1733169429455,-500.0,0.00025,120]
[343981830,1733169429500,-1155.5,0.00025,120]
[343981831,1733169429546,-2485.86,0.00025,120]
[343981832,1733169429590,-1383.07,0.00025,120]
[343981833,1733169429635,-3307.46,0.00025,120]
[343981834,1733169429677,-500.0,0.00025,120]
[343981835,1733169429718,-9569.74,0.00025,120]
[343981836,1733169429759,-619.4,0.00025,120]
[343981837,1733169429801,-2954.23,0.00025,120]
[343981838,1733169429843,-500.0,0.00025,120]
[343981839,1733169429885,-3344.79,0.00025,120]
[343981840,1733169429927,-500.0,0.00025,120]
[343981841,1733169429969,-500.0,0.00025,120]
[343981842,1733169430010,-1622.42,0.00025,120]
[343981843,1733169430060,-5312.46,0.00025,120]
[343981844,1733169430104,-3039.49,0.00025,120]
[343981845,1733169430148,-1433.94,0.00025,120]
[343981846,1733169430191,-1486.96,0.00025,120]
[343981847,1733169430234,-9703.4,0.00025,120]
[343981848,1733169430278,-500.0,0.00025,120]
[343981849,1733169430320,-411.17561179,0.00025,120]
[343981850,1733169430363,-5702.56,0.00025,120]
[343981851,1733169430406,-500.0,0.00025,120]
[343981852,1733169430450,-553.01,0.00025,120]
[343981853,1733169430492,-500.0,0.00025,120]
[343981854,1733169430540,-6176.14,0.00025,120]
[343981855,1733169430585,-617.67,0.00025,120]
[343981856,1733169430629,-2712.05,0.00025,120]
[343981857,1733169430673,-500.0,0.00025,120]
[343981858,1733169430718,-4667.69,0.00025,120]
[343981859,1733169430760,-500.0,0.00025,120]
[343981860,1733169430802,-909.9,0.00025,120]
[343981861,1733169430847,-2398.74,0.00025,120]
[343981862,1733169430891,-2769.56,0.00025,120]
[343981863,1733169430936,-31874.35,0.00025,120]
[343981864,1733169430980,-1527.45,0.00025,120]
[343981865,1733169431022,-500.0,0.00025,120]
[343981866,1733169431066,-500.0,0.00025,120]
[343981867,1733169431110,-500.0,0.00025,120]
[343981868,1733169431155,-2607.43,0.00025,120]
[343981869,1733169431199,-1429.2,0.00025,120]
[343981870,1733169431242,-500.0,0.00025,120]
[343981871,1733169431285,-500.0,0.00025,120]
[343981872,1733169431331,-500.0,0.00025,120]
[343981873,1733169431377,-500.0,0.00025,120]
[343981874,1733169431421,-1289.36,0.00025,120]
[343981875,1733169431463,-1181.82,0.00025,120]
[343981876,1733169431507,-2609.47,0.00025,120]
[343981877,1733169431569,-860.45,0.00025,120]
[343981878,1733169431616,-847.91,0.00025,120]
[343981879,1733169431658,-500.0,0.00025,120]
[343981880,1733169431701,-500.0,0.00025,120]
[343981881,1733169431747,-1577.07,0.00025,120]
[343981882,1733169431788,-500.0,0.00025,120]
[343981883,1733169431833,-187.045272,0.00025,120]
[343981884,1733169431876,-500.0,0.00025,120]
[343981885,1733169431920,-1229.5,0.00025,120]